Cogmind - Beta 9.4 @@@ ROGUE MODE // 2020.02.01 @ 15:50:03 Player: mr roboto Result: Destroyed by S-10 Pest with Light Assault Rifle Performance ------------- Evolutions (1) 500 Regions Visited (3) 600 Robots Destroyed (14) 70 Value Destroyed (318) 318 Prototype IDs (0) 0 Alien Tech Used (0) 0 Bonus (0) 0 TOTAL SCORE: 1488 Bonus ------- None Cogmind --------- Core Integrity 0/400 Matter 339/400 Energy 100/100 System Corruption 9% Temperature Cool (0) Movement Core (150) Ox2 Location -9/Mines Parts ------- > --- POWER (1) -------- (None) > --- PROPULSION (2) --- (None) > --- UTILITY (3) ------ Small Storage Unit Medium Matter Pod Structural Scanner > --- WEAPON (3) ------- (None) > --- INVENTORY (6) ---- Light Ion Engine Peak State ------------ > --- POWER ------------ Ion Engine > --- PROPULSION ------- Light Treads Light Treads > --- UTILITY ---------- Small Storage Unit Improved Terrain Scanner Light Armor Plating > --- WEAPON ----------- Light Assault Rifle Heavy Assault Rifle Heavy Assault Rifle > --- INVENTORY -------- Ion Engine Light Ion Engine Medium Matter Pod Structural Scanner Assault Rifle Light Assault Rifle [Rating: 12] Favorites ----------- Power Ion Engine Engine Ion Engine Propulsion Light Treads Treads Light Treads Utility Small Storage Unit Device Improved Terrain Scanner Storage Small Storage Unit Protection Light Armor Plating Weapon Light Assault Rifle Ballistic Gun Light Assault Rifle Build | -11 -10 -9 -9 ------- Run | Scr Mat Mat Min Slots Evolved 2 | . . 2 . Power . | . . . . Propulsion . | . . . . Utility 1 | . . 1 . Weapon 1 | . . 1 . Parts Attached 20 | 6 2 7 5 Power 4 | 1 1 1 1 Engine 4 | 1 1 1 1 Core . | . . . . Reactor . | . . . . Propulsion 2 | 2 . . . Treads 2 | 2 . . . Leg . | . . . . Wheel . | . . . . Hover . | . . . . Flight . | . . . . Utility 5 | 1 1 1 2 Device 2 | . 1 . 1 Storage 2 | 1 . . 1 Processor . | . . . . Hackware . | . . . . Protection 1 | . . 1 . Artifact . | . . . . Weapon 9 | 2 . 5 2 Energy Gun . | . . . . Energy Cannon . | . . . . Ballistic Gun 9 | 2 . 5 2 Ballistic Cannon . | . . . . Launcher . | . . . . Special Weapon . | . . . . Impact Weapon . | . . . . Slashing Weapon . | . . . . Piercing Weapon . | . . . . Special Melee Weapon . | . . . . Unidentified Prototypes . | . . . . Parts Lost 11 | . . . 11 Power 2 | . . . 2 Propulsion 2 | . . . 2 Utility 2 | . . . 2 Weapon 5 | . . . 5 Highest Loss Streak 11 | . . . 11 Average Slot Usage (%) 94 | . 98 100 49 Engine 11 | . 14 11 4 Treads 22 | . 28 22 4 Device 11 | . 12 11 12 Storage 12 | . 14 11 16 Protection 6 | . . 11 2 Ballistic Gun 28 | . 28 33 9 Naked Turns . | . . . . Heaviest Build 21 | 11 12 21 21 Greatest Support 40 | 40 40 40 40 Greatest Overweight (x) 3 | 1 . . 3 Average Overweight (x) . | . . . 2 Largest Inventory Capacity 6 | 6 6 6 6 Average Capacity 5 | 5 6 6 6 Most Carried 6 | 4 6 6 6 Average Carried 3 | 1 3 5 3 Final Capacity 6 | 6 6 6 6 Final Carried 6 | 2 6 6 1 Class Distribution -------------------- 52% | Mutant 47% | Tank Dominant Class ---------------- Mutant | -10/Materials Tank | -9/Materials Mutant | -9/Mines Resources | -11 -10 -9 -9 ----------- Run | Scr Mat Mat Min Matter Collected 559 | 251 73 183 52 Remotely . | . . . . Salvage Created 364 | . 134 183 47 Parts 28 | 2 8 11 7 Haulers Intercepted . | . . . . Recyclers Shooed 2 | 1 1 . . Parts Field Recycled . | . . . . Retrieved Matter . | . . . . Parts Self-Destructed . | . . . . Prevented . | . . . . Kills | -11 -10 -9 -9 ------- Run | Scr Mat Mat Min Combat Hostiles Destroyed 13 | . 5 5 3 Guns 13 | . 5 5 3 Classes Destroyed 3 | 1 2 . . Tunneler 1 | 1 . . . Swarmer 6 | . 3 . 3 Grunt 7 | . 2 5 . Best Kill Streak 3 | 1 3 2 3 Combat Bots Only 3 | . 3 2 3 Max Kills in Single Turn 1 | 1 1 1 1 Gunslinging . | . . . . Exploded . | . . . . Melee . | . . . . Uniques/NPCs Destroyed . | . . . . Combat | -11 -10 -9 -9 -------- Run | Scr Mat Mat Min Damage Taken 1722 | . 267 192 1263 Core 490 | . 90 49 351 Absorbed by Shields . | . . . . Core Remaining (%) 82 | 100 64 . . Volleys Fired 50 | . 23 15 12 Largest 3 | . 2 3 3 Hottest 66 | . 40 66 66 Shots Fired 116 | . 46 45 25 Gun 116 | . 46 45 25 Cannon . | . . . . Launcher . | . . . . Special . | . . . . Kinetic 116 | . 46 45 25 Thermal . | . . . . Explosive . | . . . . Electromagnetic . | . . . . Robot Hit Streak 6 | . 6 6 5 Robot Miss Streak 5 | . 5 3 4 Penetration Max . | . . . . Secondary Targets 4 | . 1 1 2 Max Gunslinging Chain 1 | . 1 1 1 Shots Hit Robots 61 | . 26 19 16 Core Hits 33 | 2 12 13 6 Critical Hits . | . . . . Critical Kills . | . . . . Critical Parts Destroyed . | . . . . Melee Attacks . | . . . . Impact . | . . . . Slashing . | . . . . Piercing . | . . . . Sneak Attacks . | . . . . Combat Hostiles . | . . . . Follow-up Attacks . | . . . . Damage Inflicted 636 | 4 222 189 221 Guns 630 | . 222 187 221 Cannons . | . . . . Explosions . | . . . . Melee . | . . . . Ramming 6 | 4 . 2 . Kinetic 630 | . 222 187 221 Thermal . | . . . . Explosive . | . . . . Electromagnetic . | . . . . Impact . | . . . . Slashing . | . . . . Piercing . | . . . . Highest Corruption 9 | . . . 9 Average Corruption 7 | . . . 7 Corruption Purged . | . . . . Overload Shots . | . . . . Overflow Damage . | . . . . Projectiles . | . . . . Explosions . | . . . . Melee . | . . . . Knockbacks . | . . . . Impact . | . . . . Kinetic . | . . . . Secondary . | . . . . Self-Inflicted Damage . | . . . . Shots . | . . . . Rammed 3 | 2 . 1 . Targets Rammed 4 | 3 . 1 . Kicked . | . . . . Crushed 1 | 1 . . . Highest Temperature 48 | . 18 44 48 Average Temperature 17 | . 11 19 17 Received Heat Transfer 270 | . 90 60 120 Siege Activations . | . . . . Robots Corrupted . | . . . . Combat Hostiles . | . . . . Parts Fried . | . . . . Impact Corruptions . | . . . . Robots Melted . | . . . . Combat Hostiles . | . . . . Parts Melted . | . . . . Heat Transferred . | . . . . Parts Sabotaged . | . . . . Parts Stolen . | . . . . Parts Stripped . | . . . . Power Chain Reactions . | . . . . Missiles Intercepted . | . . . . Alert | -11 -10 -9 -9 ------- Run | Scr Mat Mat Min Peak Influence 191 | 5 123 191 75 Average Influence 64 | 1 53 97 16 Maximum Alert Level . | . . . . Low Security (%) 100 | 100 100 100 100 Level 1 . | . . . . Level 2 . | . . . . Level 3 . | . . . . Level 4 . | . . . . Level 5 . | . . . . High Security . | . . . . Max Security . | . . . . Squads Dispatched 4 | . 2 2 . Investigation 1 | . 1 . . Extermination . | . . . . Reinforcement 3 | . 1 2 . Assault . | . . . . Garrison . | . . . . Intercept . | . . . . Construction Impeded . | . . . . Haulers Reinforced . | . . . . Stealth | -11 -10 -9 -9 --------- Run | Scr Mat Mat Min Distress Signals 2 | . . 2 . Communications Jammed . | . . . . Distress Signals . | . . . . Times Spotted 52 | . 7 23 22 Peak Tracking Total 13 | . 3 10 13 Tactical Retreats 2 | . 1 1 . Traps | -11 -10 -9 -9 ------- Run | Scr Mat Mat Min Traps Triggered 1 | . 1 . . Indirectly . | . . . . Trap Hack Attempts . | . . . . Triggered . | . . . . Disarmed . | . . . . Reprogrammed . | . . . . Reused . | . . . . Traps Extracted . | . . . . Installed . | . . . . Triggered . | . . . . Machines | -11 -10 -9 -9 ---------- Run | Scr Mat Mat Min Machines Disabled . | . . . . Max in Single Turn . | . . . . Machines Sabotaged . | . . . . Garrisons Compromised . | . . . . Overloaded Fab Kills . | . . . . Fab Network Shutdowns . | . . . . Hacking | -11 -10 -9 -9 --------- Run | Scr Mat Mat Min Machines Accessed 1 | . 1 . . Terminals . | . . . . Fabricators . | . . . . Repair Stations . | . . . . Recycling Units 1 | . 1 . . Scanalyzers . | . . . . Garrison Access . | . . . . Total Hacks 1 | . 1 . . Successful 1 | . 1 . . Failed . | . . . . Catastrophic . | . . . . Database Lockouts . | . . . . Manual . | . . . . Terminals . | . . . . Fabricators . | . . . . Repair Stations . | . . . . Recycling Units 1 | . 1 . . Scanalyzers . | . . . . Garrison Access . | . . . . Terminal Hacks . | . . . . Fabricator Hacks . | . . . . Repair Station Hacks . | . . . . Recycling Unit Hacks 1 | . 1 . . Report Inventory 1 | . 1 . . Scanalyzer . | . . . . Garrison Access Hacks . | . . . . Unauthorized Hacks . | . . . . Terminals . | . . . . Fabricators . | . . . . Repair Stations . | . . . . Recycling Units . | . . . . Scanalyzers . | . . . . Garrison Access . | . . . . Data Cores Recovered . | . . . . Used . | . . . . Hacking Detections . | . . . . Full Trace Events . | . . . . Feedback Events . | . . . . Feedback Blocked . | . . . . Robot Schematics Acquired . | . . . . Robots Built . | . . . . Matter . | . . . . Time . | . . . . Total Robot Build Rating . | . . . . Part Schematics Acquired . | . . . . Parts Built . | . . . . Matter . | . . . . Time . | . . . . Total Part Build Rating . | . . . . Parts Repaired . | . . . . Time . | . . . . Parts Recycled . | . . . . Recycled Matter . | . . . . Retrieved Matter . | . . . . Retrieved Components . | . . . . Parts Scanalyzed . | . . . . Part Schematics Acquired . | . . . . Parts Damaged . | . . . . Bothacking | -11 -10 -9 -9 ------------ Run | Scr Mat Mat Min Used RIF Installer . | . . . . Robots Hacked . | . . . . Non-combat . | . . . . Combat . | . . . . Robot Hacks Applied . | . . . . Relay Couplers Released . | . . . . Robots Rewired . | . . . . Allies Hacked . | . . . . Hacks Repelled . | . . . . Allies | -11 -10 -9 -9 -------- Run | Scr Mat Mat Min Total Allies . | . . . . Largest Group . | . . . . Highest-Rated Group . | . . . . Highest-Rated Ally . | . . . . Total Orders . | . . . . Ally Attacks . | . . . . Total Damage . | . . . . Kills . | . . . . Allies Corrupted . | . . . . Allies Melted . | . . . . Intel | -11 -10 -9 -9 ------- Run | Scr Mat Mat Min Robot Analysis Total . | . . . . Derelict Logs Recovered . | . . . . Drone Launches . | . . . . Drone Recoveries . | . . . . Exploration | -11 -10 -9 -9 ------------- Run | Scr Mat Mat Min Turns Passed 999 | 120 340 463 76 Spaces Moved 528 | 79 171 254 24 Core 46 | 24 . . 22 Treads 482 | 55 171 254 2 Legs . | . . . . Wheels . | . . . . Hover . | . . . . Flight . | . . . . Fastest Speed 50 | 50 160 160 150 Average Speed 155 | 131 160 160 164 Slowest Speed 200 | 160 160 160 200 Overloaded Moves . | . . . . Propulsion Burnouts . | . . . . Robots Hopped . | . . . . Cave-ins Triggered . | . . . . Exploration Rate (%) 19 | 6 28 25 20 Regions Visited 3 Branch Regions 1 Pre-discovered Areas . | . . . . Known Exits Taken . | . . . . Unknown Exits Taken 3 | 1 1 1 . Scrap Searched . | . . . . Spaces Dug . | . . . . Terrain Destroyed . | . . . . Melee . | . . . . Projectile . | . . . . AOE . | . . . . Actions | -11 -10 -9 -9 --------- Run | Scr Mat Mat Min Total 615 | 92 200 282 41 Wait . | . . . . Move 525 | 78 170 253 24 Hop . | . . . . Pick Up 13 | 5 5 3 . Fast Attach 3 | 3 . . . Attach 11 | 3 1 2 5 Detach . | . . . . Swap 6 | . 1 5 . Drop 3 | . . 3 . Fire 50 | . 23 15 12 Melee . | . . . . Ram . | . . . . Kick . | . . . . Crush 4 | 3 . 1 . Escape Stasis . | . . . . Rewire . | . . . . Trap . | . . . . Miscellaneous . | . . . . Route ------- -11/Scrapyard -10/Materials -9/Materials -9/Mines History --------- Turn | Location | Event 2 | -11/Scrapyard | Discovered new exit (range 16) 121 | -11/Scrapyard | Entered Materials 327 | -10/Materials | Build established: Mutant 353 | -10/Materials | Discovered new exit (range 14) 461 | -10/Materials | Entered another Materials area 461 | -9/Materials | Evolved 2 slots: Utility x1, Weapon x1 777 | -9/Materials | Build established: Tank 903 | -9/Materials | Discovered new exit (range 7) 924 | -9/Materials | Entered Mines 925 | -9/Mines | Assembled infested the area 955 | -9/Mines | Core integrity fell below 50% 985 | -9/Mines | Core integrity fell below 20% 1000 | -9/Mines | Destroyed by S-10 Pest with Light Assault Rifle Last Messages --------------- 00973_ as-14401 sneak attacks. 00973_ U-05 Engineer system corrupted by crushing effect. 00973_ U-05 Engineer knocked back. 00973_ U-05 Engineer lays Concrete. 00974_ U-05 Engineer system terminally corrupted. 00974_ as-49241 destroyed. 00975_ U-05 Engineer builds a Wall. 00976_ The unstable cave ceiling collapses. 00977_ Ion Engine destroyed. 00979_ as-14401 destroyed. 00979_ R-06 Scavenger collects Lgt. Ion Engine. 00980_ The unstable cave ceiling collapses. 00981_ R-06 Scavenger collects Wheel. 00984_ Acquired 15 matter. 00985_ R-06 Scavenger collects Imp. Terrain Scanner. 00986_ Acquired 4 matter. 00987_ as-11958 destroyed. 00993_ as-71266 suffers critical hit. 00995_ as-71266 destroyed. 00996_ Acquired 13 matter. Map ----- +----------------------------------------------------+ | | | | | | | | | | | | | | | | | | | | | ?????????????????????????????????????????????????? | | ?????????????????????????????????????????????????? | | ??????????????????######???####??????????????????? | | ?????????????????## ### ??????????????????? | | ?????????????????# ???????????????????? | | ????????????????## ???????????????????? | | ???????????????## #???????????????????? | | ???????????????# #???????????????????? | | ???????????????# ##??????????????????? | | ???????????????# #### #?????????????? | | ???????????????# % ???????????????? | | ????????????????# s#?????????????????? | | ?????????????????# % #?????????????????? | | ???????????????????# #??????????????????? | | ???????????????????## s #######????????????? | | ????????????????????## @ % #????????????? | | ????????????????###??# r % $#????????????? | | ???????????????## ### ### #????????????? | | ???????????????# #????#????????????? | | ???????????????# #?????????????????? | | ???????????????## ##?#???????????????? | | ????????????????## ##??????????????????? | | ?????????????#######% # ##????????? ?????????? | | ?????????? "% =## %# #????????????????????? | | ?????????????? ## ##??? ???????????????? | | ??????????????##### # # #???????? ??????????? | | ??????????????????# # # ##??????????????????? | | ??????????????????#?# % #???????????????????? | | ????????????????#???## #?????????????? | | ??????????????????# #?????????????? | | ???????????#??????# #### #?????????????? | | ??????????????????# # #??#??#?????????????? | | ??????????????????# # #???????????????????? | | ??????????????????#?# #???????????????????? | | ????????????????????# #???????????????????? | | ???????????????#????## #???????????????????? | | ??????????????????? ?# #???????????????????? | | ?????????????????????### ???????????????????? | | ??????????????#????????# ??????????????????? | | ???????????????????????# #####??????????????????? | +----------------------------------------------------+ Best States ------------- Heat Dissipation 28 Energy Generation 10 Energy Capacity 250 Matter Stores 339 Matter Capacity 400 Sight Range 16 Terrain Scan Range 16 Terrain Scan Density 10 Armor Coverage 150 Evasion (%) 50 Recoil Reduction 2 Item Schematics ----------------- None Robot Schematics ------------------ None Fabricated ------------ Nothing Alien Tech Used ----------------- None Achievements -------------- None Challenges ------------ None Game ------ Seed ControlFluxCapacitor Manual? 0 Play Time 00:12:01 Cumulative 3.2 hours Start 2020.02.01 @ 15:38:54 End 2020.02.01 @ 15:50:03 Sessions 1 Manual Loads 0 Difficulty Rogue Special Mode None Game No. 32 Rogue 32 Adventurer 0 Explorer 0 Win Type - Total 0 Types 0/0/0/0/0/0/0 Lore% 0 Gallery% 12 Achievement% 4 Wizard Run 0 Options --------- ASCII 1 Keyboard 0 Movement Arrows Keybinds 0 Fullscreen 1 Font 18/SmallcapsGlow Map View 76x50 Tactical HUD 1 Map Filters NONE Filters NONE Steam 1 RUN: c63a60bf-9ad7-41ec-becc-8630254802e2